[Event "*** SCC Grand Prix: Titled Tuesday Blitz"]
[Site "Chess.com"]
[Date "2020.10.06"]
[Round "3"]
[White "Smirnov_Pavel"]
[Black "nurgyulsalimova"]
[Result "1-0"]
[WhiteElo "2809"]
[BlackElo "2609"]
[TimeControl "180+1"]
[EndTime "10:27:29 PDT"]
[Termination "Smirnov_Pavel won by resignation"]

1. d4 {[%clk 0:03:00.9]} 1... Nf6 {[%clk 0:02:59.7]} 2. c4 {[%clk 0:03:00.3]}
2... e6 {[%clk 0:02:59.6]} 3. Nf3 {[%clk 0:03:00.4]} 3... d5 {[%clk 0:02:59.3]}
4. Nc3 {[%clk 0:03:00.3]} 4... c6 {[%clk 0:02:59.4]} 5. e3 {[%clk 0:02:59.6]}
5... Nbd7 {[%clk 0:02:59.1]} 6. Qc2 {[%clk 0:02:59.6]} 6... Bd6 {[%clk
0:02:58.1]} 7. Bd3 {[%clk 0:02:59.1]} 7... dxc4 {[%clk 0:02:58.4]} 8. Bxc4
{[%clk 0:02:58.6]} 8... b5 {[%clk 0:02:58.6]} 9. Be2 {[%clk 0:02:58.6]} 9... Bb7
{[%clk 0:02:58.4]} 10. O-O {[%clk 0:02:58]} 10... a6 {[%clk 0:02:51.7]} 11. Rd1
{[%clk 0:02:52.7]} 11... Qc7 {[%clk 0:02:49.9]} 12. e4 {[%clk 0:02:49.9]} 12...
e5 {[%clk 0:02:49.8]} 13. g3 {[%clk 0:02:48.6]} 13... O-O {[%clk 0:02:36.2]} 14.
dxe5 {[%clk 0:02:42.9]} 14... Nxe5 {[%clk 0:02:36]} 15. Bg5 {[%clk 0:02:43.5]}
15... Rad8 {[%clk 0:01:43.3]} 16. Bxf6 {[%clk 0:02:40.6]} 16... gxf6 {[%clk
0:01:44.2]} 17. Nh4 {[%clk 0:02:33.7]} 17... Bc8 {[%clk 0:01:40.8]} 18. Qc1
{[%clk 0:02:15.8]} 18... Kg7 {[%clk 0:01:33.9]} 19. Qe3 {[%clk 0:01:59.6]} 19...
Ng6 {[%clk 0:01:23.3]} 20. Nf5+ {[%clk 0:01:58.1]} 20... Bxf5 {[%clk 0:01:23.4]}
21. exf5 {[%clk 0:01:58.9]} 21... Rfe8 {[%clk 0:01:22.1]} 22. Ne4 {[%clk
0:01:42]} 22... Ne7 {[%clk 0:00:41]} 23. Qf3 {[%clk 0:01:40.1]} 23... Be5 {[%clk
0:00:38.8]} 24. Qg4+ {[%clk 0:01:31.9]} 24... Kh8 {[%clk 0:00:39]} 25. Qh5
{[%clk 0:01:31.5]} 25... Kg7 {[%clk 0:00:37.4]} 26. Rab1 {[%clk 0:01:21.6]}
26... Nd5 {[%clk 0:00:31.8]} 27. Bf3 {[%clk 0:01:17.4]} 27... Qa7 {[%clk
0:00:22.5]} 28. Kg2 {[%clk 0:01:15.9]} 28... Re7 {[%clk 0:00:16.2]} 29. Re1
{[%clk 0:01:04.9]} 29... Rde8 {[%clk 0:00:15.5]} 30. Rbd1 {[%clk 0:01:04.7]}
30... Bxb2 {[%clk 0:00:15.1]} 31. Re2 {[%clk 0:00:47.5]} 31... Bd4 {[%clk
0:00:14.5]} 32. Rc1 {[%clk 0:00:46]} 32... c5 {[%clk 0:00:13.9]} 33. Qg4+ {[%clk
0:00:36.8]} 33... Kh8 {[%clk 0:00:13.3]} 34. Qh4 {[%clk 0:00:37.5]} 34... Kg7
{[%clk 0:00:12.4]} 35. Rd1 {[%clk 0:00:37.1]} 35... c4 {[%clk 0:00:08.4]} 36.
Red2 {[%clk 0:00:34.2]} 36... Bxf2 {[%clk 0:00:02.1]} 37. Rxd5 {[%clk
0:00:31.1]} 37... Be3 {[%clk 0:00:02.5]} 38. Qxf6+ {[%clk 0:00:30]} 38... Kg8
{[%clk 0:00:03.1]} 39. Qh4 {[%clk 0:00:29.2]} 39... c3 {[%clk 0:00:03.4]} 40.
Nf6+ {[%clk 0:00:28.6]} 40... Kf8 {[%clk 0:00:03.6]} 41. Qxh7 {[%clk 0:00:22.6]}
1-0

[Event "*** SCC Grand Prix: Titled Tuesday Blitz"]
[Site "Chess.com"]
[Date "2020.10.06"]
[Round "3"]
[White "Matveev_Vladimir"]
[Black "Emp3rador"]
[Result "1-0"]
[WhiteElo "2617"]
[BlackElo "2419"]
[TimeControl "180+1"]
[EndTime "10:27:29 PDT"]
[Termination "Matveev_Vladimir won by resignation"]

1. d4 {[%clk 0:02:57.8]} 1... d5 {[%clk 0:02:54.6]} 2. c4 {[%clk 0:02:57.9]}
2... c6 {[%clk 0:02:54.1]} 3. Nf3 {[%clk 0:02:58]} 3... Nf6 {[%clk 0:02:53.5]}
4. Qc2 {[%clk 0:02:58.3]} 4... dxc4 {[%clk 0:02:52.9]} 5. e4 {[%clk 0:02:58.9]}
5... b5 {[%clk 0:02:50.8]} 6. b3 {[%clk 0:02:59]} 6... cxb3 {[%clk 0:02:50.5]}
7. axb3 {[%clk 0:02:59.9]} 7... Bb7 {[%clk 0:02:48.3]} 8. Bd3 {[%clk 0:02:58]}
8... e6 {[%clk 0:02:48]} 9. Bd2 {[%clk 0:02:57.8]} 9... Na6 {[%clk 0:02:46.9]}
10. Rxa6 {[%clk 0:02:51]} 10... Bxa6 {[%clk 0:02:47]} 11. Qxc6+ {[%clk
0:02:50.7]} 11... Nd7 {[%clk 0:02:46.8]} 12. Qxa6 {[%clk 0:02:50.5]} 12... Be7
{[%clk 0:02:36.8]} 13. Bxb5 {[%clk 0:02:45.9]} 13... O-O {[%clk 0:02:36.7]} 14.
O-O {[%clk 0:02:45.7]} 14... Nb6 {[%clk 0:02:35.7]} 15. Rc1 {[%clk 0:02:39.8]}
15... h6 {[%clk 0:02:33]} 16. Be3 {[%clk 0:02:34.8]} 16... Rc8 {[%clk
0:02:05.7]} 17. Rxc8 {[%clk 0:02:14.9]} 17... Nxc8 {[%clk 0:01:53.7]} 18. Nbd2
{[%clk 0:02:11.3]} 18... Qc7 {[%clk 0:01:52.8]} 19. Nc4 {[%clk 0:02:09.7]} 19...
Nb6 {[%clk 0:01:46]} 20. Nfe5 {[%clk 0:02:07]} 20... f5 {[%clk 0:01:23.2]} 21.
f3 {[%clk 0:01:49.5]} 21... fxe4 {[%clk 0:01:18.9]} 22. fxe4 {[%clk 0:01:50.4]}
22... Nxc4 {[%clk 0:01:08.1]} 23. bxc4 {[%clk 0:01:49.2]} 23... Bd6 {[%clk
0:01:07.4]} 24. Qc6 {[%clk 0:01:39.1]} 24... Qb8 {[%clk 0:00:57.5]} 25. g3
{[%clk 0:01:29.8]} 25... Bxe5 {[%clk 0:00:12.4]} 26. Qxe6+ {[%clk 0:01:27.9]}
26... Kh8 {[%clk 0:00:12.1]} 27. Qxe5 {[%clk 0:01:28]} 27... Qb7 {[%clk
0:00:11.3]} 28. Bxh6 {[%clk 0:01:10.2]} 28... Kh7 {[%clk 0:00:04.1]} 29. Bf4
{[%clk 0:01:07.7]} 29... a6 {[%clk 0:00:04.4]} 30. Qh5+ {[%clk 0:00:33.8]} 30...
Kg8 {[%clk 0:00:04]} 31. Qd5+ {[%clk 0:00:34.4]} 31... Qxd5 {[%clk 0:00:03.6]}
32. exd5 {[%clk 0:00:35.3]} 32... axb5 {[%clk 0:00:04]} 33. cxb5 {[%clk
0:00:36.2]} 33... Rf7 {[%clk 0:00:04]} 34. b6 {[%clk 0:00:35.9]} 34... Rb7
{[%clk 0:00:03.9]} 35. Bc7 {[%clk 0:00:35.4]} 35... Kf7 {[%clk 0:00:04.4]} 36.
d6 {[%clk 0:00:35.5]} 36... Ke6 {[%clk 0:00:04.8]} 37. Kf2 {[%clk 0:00:35.9]}
37... Kd7 {[%clk 0:00:04.8]} 38. Ke3 {[%clk 0:00:36.4]} 38... Ke6 {[%clk
0:00:05.1]} 39. Ke4 {[%clk 0:00:36.8]} 39... g6 {[%clk 0:00:05.7]} 40. g4 {[%clk
0:00:37.1]} 40... Kd7 {[%clk 0:00:04.9]} 41. Ke5 {[%clk 0:00:37.2]} 41... Kc8
{[%clk 0:00:03.6]} 42. Kf6 {[%clk 0:00:36.9]} 42... g5 {[%clk 0:00:03.6]} 43.
Kxg5 {[%clk 0:00:35.5]} 43... Kd7 {[%clk 0:00:04.5]} 44. h4 {[%clk 0:00:35.9]}
44... Kc6 {[%clk 0:00:04.7]} 45. h5 {[%clk 0:00:36.5]} 45... Rxc7 {[%clk
0:00:05.1]} 46. dxc7 {[%clk 0:00:36.5]} 1-0

[Event "*** SCC Grand Prix: Titled Tuesday Blitz"]
[Site "Chess.com"]
[Date "2020.10.06"]
[Round "3"]
[White "Korchmar_Vasiliy"]
[Black "DishonorOnYourCow"]
[Result "0-1"]
[WhiteElo "2568"]
[BlackElo "2415"]
[TimeControl "180+1"]
[EndTime "10:27:29 PDT"]
[Termination "DishonorOnYourCow won on time"]

1. e4 {[%clk 0:03:00.9]} 1... e5 {[%clk 0:02:54.8]} 2. Nf3 {[%clk 0:03:00.7]}
2... Nc6 {[%clk 0:02:54.3]} 3. Nc3 {[%clk 0:03:01.1]} 3... Nf6 {[%clk 0:02:53]}
4. Bb5 {[%clk 0:03:01.7]} 4... Bb4 {[%clk 0:02:50.3]} 5. O-O {[%clk 0:03:00]}
5... d6 {[%clk 0:02:45.5]} 6. d3 {[%clk 0:02:57.7]} 6... Bd7 {[%clk 0:02:42.5]}
7. Bg5 {[%clk 0:02:30.7]} 7... Bxc3 {[%clk 0:02:39.4]} 8. bxc3 {[%clk
0:02:30.4]} 8... h6 {[%clk 0:02:39.8]} 9. Bc1 {[%clk 0:02:28]} 9... O-O {[%clk
0:02:39.5]} 10. Re1 {[%clk 0:02:24.9]} 10... a6 {[%clk 0:02:33.8]} 11. Bc4
{[%clk 0:02:22.9]} 11... Na5 {[%clk 0:02:27.8]} 12. Bb3 {[%clk 0:02:22.7]} 12...
Nxb3 {[%clk 0:02:27.5]} 13. axb3 {[%clk 0:02:23.6]} 13... Bg4 {[%clk 0:02:26.2]}
14. h3 {[%clk 0:02:23.5]} 14... Bh5 {[%clk 0:02:25.4]} 15. g4 {[%clk 0:02:14.6]}
15... Nxg4 {[%clk 0:02:25.1]} 16. hxg4 {[%clk 0:02:15.5]} 16... Bxg4 {[%clk
0:02:25.8]} 17. d4 {[%clk 0:01:17.8]} 17... f5 {[%clk 0:02:19.5]} 18. dxe5
{[%clk 0:01:17.7]} 18... Kh8 {[%clk 0:01:59.4]} 19. e6 {[%clk 0:00:51.3]} 19...
fxe4 {[%clk 0:01:54.3]} 20. Rxe4 {[%clk 0:00:52.2]} 20... Bxf3 {[%clk
0:01:50.6]} 21. e7 {[%clk 0:00:52.2]} 21... Bxd1 {[%clk 0:01:41.4]} 22. exd8=Q
{[%clk 0:00:50.7]} 22... Raxd8 {[%clk 0:01:42.3]} 23. Be3 {[%clk 0:00:46]} 23...
Bf3 {[%clk 0:01:40.6]} 24. Re7 {[%clk 0:00:45.5]} 24... Rf5 {[%clk 0:01:25.6]}
25. Kh2 {[%clk 0:00:36.2]} 25... Rdf8 {[%clk 0:01:16.4]} 26. Rxc7 {[%clk
0:00:18.5]} 26... Rh5+ {[%clk 0:01:13.8]} 27. Kg3 {[%clk 0:00:18.6]} 27... Bc6
{[%clk 0:01:14.5]} 28. Rd1 {[%clk 0:00:12.3]} 28... Rf3+ {[%clk 0:01:02.6]} 29.
Kg4 {[%clk 0:00:12.2]} 29... Rhf5 {[%clk 0:00:44.4]} 30. Rxd6 {[%clk 0:00:07.8]}
30... h5+ {[%clk 0:00:32.2]} 31. Kh4 {[%clk 0:00:08.1]} 31... Be4 {[%clk
0:00:24]} 32. Re6 {[%clk 0:00:05.8]} 32... Bxc2 {[%clk 0:00:23.1]} 33. Bd4
{[%clk 0:00:04]} 33... R3f4+ {[%clk 0:00:09.2]} 34. Kh3 {[%clk 0:00:03.5]} 34...
Rg4 {[%clk 0:00:08.1]} 0-1

[Event "*** SCC Grand Prix: Titled Tuesday Blitz"]
[Site "Chess.com"]
[Date "2020.10.06"]
[Round "3"]
[White "sokidze"]
[Black "Zhigalko_Sergei"]
[Result "0-1"]
[WhiteElo "2705"]
[BlackElo "2924"]
[TimeControl "180+1"]
[EndTime "10:27:33 PDT"]
[Termination "Zhigalko_Sergei won by resignation"]

1. d4 {[%clk 0:03:00.9]} 1... Nf6 {[%clk 0:02:59.8]} 2. g3 {[%clk 0:03:01.1]}
2... c5 {[%clk 0:02:55.6]} 3. d5 {[%clk 0:03:00.9]} 3... e6 {[%clk 0:02:53.3]}
4. c4 {[%clk 0:03:00.5]} 4... exd5 {[%clk 0:02:53.2]} 5. cxd5 {[%clk 0:03:01.4]}
5... d6 {[%clk 0:02:54]} 6. Nc3 {[%clk 0:03:01.6]} 6... g6 {[%clk 0:02:54.9]} 7.
Nf3 {[%clk 0:03:02]} 7... Bg7 {[%clk 0:02:55.8]} 8. Bg2 {[%clk 0:03:02.6]} 8...
O-O {[%clk 0:02:56.7]} 9. O-O {[%clk 0:03:03]} 9... a6 {[%clk 0:02:57.6]} 10. a4
{[%clk 0:03:02.9]} 10... Re8 {[%clk 0:02:55.2]} 11. Nd2 {[%clk 0:03:02.8]} 11...
Nbd7 {[%clk 0:02:54.4]} 12. h3 {[%clk 0:03:03.1]} 12... b6 {[%clk 0:02:45.4]}
13. Qb3 {[%clk 0:02:37.9]} 13... Rb8 {[%clk 0:02:36.2]} 14. Nc4 {[%clk
0:02:20.5]} 14... Ne5 {[%clk 0:02:35]} 15. Na3 {[%clk 0:02:09.7]} 15... b5
{[%clk 0:01:22.8]} 16. axb5 {[%clk 0:01:48.3]} 16... axb5 {[%clk 0:01:23.2]} 17.
f4 {[%clk 0:01:39]} 17... c4 {[%clk 0:01:04.8]} 18. Qb4 {[%clk 0:01:26.6]} 18...
Qb6+ {[%clk 0:01:05.4]} 19. Kh1 {[%clk 0:01:21.2]} 19... Ned7 {[%clk 0:00:51.6]}
20. Naxb5 {[%clk 0:01:03.7]} 20... Ba6 {[%clk 0:00:38.4]} 21. Ra5 {[%clk
0:01:00.7]} 21... Nh5 {[%clk 0:00:28.2]} 22. Kh2 {[%clk 0:00:56]} 22... Bxc3
{[%clk 0:00:27.5]} 23. Qxc3 {[%clk 0:00:35.7]} 23... Bxb5 {[%clk 0:00:26]} 24.
e4 {[%clk 0:00:36.4]} 24... Nc5 {[%clk 0:00:24]} 25. Be3 {[%clk 0:00:36.2]}
25... Qc7 {[%clk 0:00:20.7]} 26. g4 {[%clk 0:00:31.5]} 26... Ng7 {[%clk
0:00:18]} 27. Bd4 {[%clk 0:00:27.4]} 27... f6 {[%clk 0:00:13]} 28. Rfa1 {[%clk
0:00:08.4]} 28... Nxe4 {[%clk 0:00:11.9]} 29. Qc2 {[%clk 0:00:06.3]} 29... Nc5
{[%clk 0:00:09.8]} 30. Bxf6 {[%clk 0:00:05.6]} 30... Qf7 {[%clk 0:00:06]} 31.
Bd4 {[%clk 0:00:05.4]} 31... Qxf4+ {[%clk 0:00:05.4]} 32. Kh1 {[%clk 0:00:05]}
32... Qxd4 {[%clk 0:00:06.3]} 33. Ra7 {[%clk 0:00:05.1]} 33... Nd3 {[%clk
0:00:06.1]} 34. Rf1 {[%clk 0:00:03]} 34... Rf8 {[%clk 0:00:06.2]} 35. Rd1 {[%clk
0:00:02.3]} 35... Nf2+ {[%clk 0:00:06.5]} 0-1

[Event "*** SCC Grand Prix: Titled Tuesday Blitz"]
[Site "Chess.com"]
[Date "2020.10.06"]
[Round "3"]
[White "XDPS"]
[Black "KyronGriffith"]
[Result "1-0"]
[WhiteElo "2801"]
[BlackElo "2563"]
[TimeControl "180+1"]
[EndTime "10:27:33 PDT"]
[Termination "XDPS won by resignation"]

1. e4 {[%clk 0:03:00.9]} 1... c6 {[%clk 0:02:59.6]} 2. Nf3 {[%clk 0:02:57.9]}
2... d5 {[%clk 0:02:54.4]} 3. Nc3 {[%clk 0:02:56.3]} 3... a6 {[%clk 0:02:54.5]}
4. h3 {[%clk 0:02:54.4]} 4... d4 {[%clk 0:02:53.2]} 5. Ne2 {[%clk 0:02:54.2]}
5... c5 {[%clk 0:02:53.8]} 6. c3 {[%clk 0:02:52.9]} 6... Nc6 {[%clk 0:02:40.6]}
7. Ng3 {[%clk 0:02:18.2]} 7... e6 {[%clk 0:02:35.5]} 8. Bd3 {[%clk 0:02:03.9]}
8... Bd6 {[%clk 0:02:30.8]} 9. O-O {[%clk 0:02:04.3]} 9... Nge7 {[%clk
0:02:29.3]} 10. Re1 {[%clk 0:01:56.1]} 10... Ng6 {[%clk 0:02:28.4]} 11. Bf1
{[%clk 0:01:51.9]} 11... Qc7 {[%clk 0:02:18.2]} 12. Nh5 {[%clk 0:01:50.5]} 12...
O-O {[%clk 0:02:18]} 13. d3 {[%clk 0:01:49.7]} 13... b5 {[%clk 0:01:42.7]} 14.
a4 {[%clk 0:01:49.1]} 14... Bb7 {[%clk 0:01:42.5]} 15. Bd2 {[%clk 0:01:42.6]}
15... dxc3 {[%clk 0:01:33.6]} 16. bxc3 {[%clk 0:01:42.3]} 16... Rfd8 {[%clk
0:01:29]} 17. axb5 {[%clk 0:01:41.2]} 17... axb5 {[%clk 0:01:29.6]} 18. Rxa8
{[%clk 0:01:41.4]} 18... Bxa8 {[%clk 0:01:29.4]} 19. d4 {[%clk 0:01:41.7]} 19...
cxd4 {[%clk 0:01:28.6]} 20. cxd4 {[%clk 0:01:42.1]} 20... b4 {[%clk 0:01:23.4]}
21. Qa4 {[%clk 0:01:27.4]} 21... Bf8 {[%clk 0:01:07.5]} 22. Be3 {[%clk
0:00:29.9]} 22... Bb7 {[%clk 0:01:02.1]} 23. Rc1 {[%clk 0:00:25.4]} 23... Qd7
{[%clk 0:00:52.3]} 24. Bb5 {[%clk 0:00:23.8]} 24... Rc8 {[%clk 0:00:44.1]} 25.
Ng3 {[%clk 0:00:13.9]} 25... Qd6 {[%clk 0:00:25.8]} 26. e5 {[%clk 0:00:11.5]}
26... Qd5 {[%clk 0:00:25.2]} 27. Bc4 {[%clk 0:00:11.4]} 27... Qd7 {[%clk
0:00:25.2]} 28. Ne4 {[%clk 0:00:11.7]} 28... Ncxe5 {[%clk 0:00:24.8]} 29. Qxd7
{[%clk 0:00:06.6]} 29... Nxd7 {[%clk 0:00:25.7]} 30. Nfd2 {[%clk 0:00:05.5]}
30... Nb6 {[%clk 0:00:23.5]} 31. Nc5 {[%clk 0:00:05.9]} 31... Bd5 {[%clk
0:00:22]} 32. Ba6 {[%clk 0:00:05.4]} 32... Ra8 {[%clk 0:00:21.8]} 33. Bf1 {[%clk
0:00:05.6]} 33... f5 {[%clk 0:00:20.8]} 34. Ndb3 {[%clk 0:00:05.4]} 34... f4
{[%clk 0:00:21]} 35. Bd2 {[%clk 0:00:05.3]} 35... Ra2 {[%clk 0:00:21.9]} 36.
Bxb4 {[%clk 0:00:05.4]} 36... Na4 {[%clk 0:00:21]} 37. Nxa4 {[%clk 0:00:05.3]}
37... Rxa4 {[%clk 0:00:20.6]} 38. Bxf8 {[%clk 0:00:05.3]} 38... Kxf8 {[%clk
0:00:21.5]} 39. Nc5 {[%clk 0:00:05.7]} 39... Ra2 {[%clk 0:00:21.4]} 40. Bc4
{[%clk 0:00:05]} 40... Bxc4 {[%clk 0:00:21.4]} 41. Rxc4 {[%clk 0:00:05.9]} 41...
Ne7 {[%clk 0:00:21.7]} 42. Nxe6+ {[%clk 0:00:06.1]} 42... Kf7 {[%clk 0:00:22.2]}
43. Nxf4 {[%clk 0:00:07]} 43... Nf5 {[%clk 0:00:22.6]} 44. Rc7+ {[%clk
0:00:06.7]} 44... Kf6 {[%clk 0:00:22.7]} 45. d5 {[%clk 0:00:06.9]} 45... g5
{[%clk 0:00:22.4]} 46. Rc6+ {[%clk 0:00:06.9]} 46... Ke5 {[%clk 0:00:22.3]} 47.
Nd3+ {[%clk 0:00:06.1]} 47... Kxd5 {[%clk 0:00:22.9]} 48. Nb4+ {[%clk
0:00:06.6]} 1-0

[Event "*** SCC Grand Prix: Titled Tuesday Blitz"]
[Site "Chess.com"]
[Date "2020.10.06"]
[Round "3"]
[White "Beltraxtor"]
[Black "lucachess49"]
[Result "1-0"]
[WhiteElo "2583"]
[BlackElo "2396"]
[TimeControl "180+1"]
[EndTime "10:27:34 PDT"]
[Termination "Beltraxtor won on time"]

1. e4 {[%clk 0:03:00.9]} 1... e5 {[%clk 0:02:56.6]} 2. Nf3 {[%clk 0:03:00.9]}
2... Nc6 {[%clk 0:02:56.2]} 3. Bb5 {[%clk 0:03:01.6]} 3... a6 {[%clk 0:02:55.6]}
4. Ba4 {[%clk 0:03:02]} 4... Nf6 {[%clk 0:02:52.2]} 5. O-O {[%clk 0:03:01]} 5...
Be7 {[%clk 0:02:51.9]} 6. Re1 {[%clk 0:03:00.9]} 6... b5 {[%clk 0:02:52]} 7. Bb3
{[%clk 0:03:01.3]} 7... d6 {[%clk 0:02:52.9]} 8. c3 {[%clk 0:03:01.7]} 8... O-O
{[%clk 0:02:53.5]} 9. h3 {[%clk 0:03:02.4]} 9... Na5 {[%clk 0:02:54.1]} 10. Bc2
{[%clk 0:03:02.1]} 10... c5 {[%clk 0:02:54.8]} 11. d4 {[%clk 0:03:01.2]} 11...
Qc7 {[%clk 0:02:54.8]} 12. Nbd2 {[%clk 0:03:01.1]} 12... Nc6 {[%clk 0:02:37.8]}
13. a3 {[%clk 0:02:36.3]} 13... Bb7 {[%clk 0:01:55.7]} 14. b4 {[%clk 0:02:30.9]}
14... cxd4 {[%clk 0:01:47.7]} 15. cxd4 {[%clk 0:02:30.1]} 15... Rac8 {[%clk
0:01:47.9]} 16. Bb3 {[%clk 0:02:23.2]} 16... exd4 {[%clk 0:01:47.8]} 17. Bb2
{[%clk 0:02:22.5]} 17... Ne5 {[%clk 0:01:40.5]} 18. Bxd4 {[%clk 0:02:12.6]}
18... Qb8 {[%clk 0:01:11.4]} 19. Qe2 {[%clk 0:01:29.3]} 19... Nfd7 {[%clk
0:00:47.8]} 20. Bb2 {[%clk 0:01:05.2]} 20... Bf6 {[%clk 0:00:39.3]} 21. Nd4
{[%clk 0:01:01.5]} 21... g6 {[%clk 0:00:24]} 22. a4 {[%clk 0:00:27.8]} 22...
bxa4 {[%clk 0:00:11.2]} 23. Rxa4 {[%clk 0:00:28.7]} 23... Nc6 {[%clk 0:00:07.2]}
24. Nxc6 {[%clk 0:00:25.2]} 24... Bxc6 {[%clk 0:00:08.1]} 25. Bxf6 {[%clk
0:00:23.8]} 25... Nxf6 {[%clk 0:00:07]} 26. Rxa6 {[%clk 0:00:11.8]} 26... Bb5
{[%clk 0:00:06.7]} 27. Qf3 {[%clk 0:00:12.3]} 27... Bxa6 {[%clk 0:00:06.7]} 28.
Qxf6 {[%clk 0:00:12.9]} 28... Qxb4 {[%clk 0:00:06.2]} 29. Qf4 {[%clk 0:00:08.6]}
29... Rcd8 {[%clk 0:00:03.4]} 30. Bd5 {[%clk 0:00:08.7]} 30... Bb7 {[%clk
0:00:02.9]} 31. Qg5 {[%clk 0:00:06.6]} 31... Bxd5 {[%clk 0:00:02.3]} 32. exd5
{[%clk 0:00:06]} 32... Rde8 {[%clk 0:00:02.7]} 33. Rc1 {[%clk 0:00:05.9]} 33...
Qd4 {[%clk 0:00:02.4]} 34. Nf3 {[%clk 0:00:05.2]} 34... Qe4 {[%clk 0:00:02.3]}
35. Rc6 {[%clk 0:00:05]} 35... f6 {[%clk 0:00:01.9]} 36. Qd2 {[%clk 0:00:04.7]}
1-0

[Event "*** SCC Grand Prix: Titled Tuesday Blitz"]
[Site "Chess.com"]
[Date "2020.10.06"]
[Round "3"]
[White "chito89"]
[Black "SilviusTiberius"]
[Result "1/2-1/2"]
[WhiteElo "2824"]
[BlackElo "2658"]
[TimeControl "180+1"]
[EndTime "10:27:37 PDT"]
[Termination "Game drawn by repetition"]

1. Nf3 {[%clk 0:03:00.9]} 1... Nf6 {[%clk 0:02:59.8]} 2. c4 {[%clk 0:03:00.6]}
2... g6 {[%clk 0:03:00.7]} 3. Nc3 {[%clk 0:02:56.5]} 3... Bg7 {[%clk 0:03:01.6]}
4. d4 {[%clk 0:02:56.7]} 4... O-O {[%clk 0:03:02.5]} 5. Bg5 {[%clk 0:02:56.7]}
5... d6 {[%clk 0:03:03.4]} 6. e3 {[%clk 0:02:56.5]} 6... c5 {[%clk 0:03:02.3]}
7. Be2 {[%clk 0:02:51.2]} 7... h6 {[%clk 0:03:02.1]} 8. Bh4 {[%clk 0:02:50.8]}
8... g5 {[%clk 0:03:02.2]} 9. Bg3 {[%clk 0:02:50.9]} 9... Nh5 {[%clk 0:03:02.6]}
10. Qc2 {[%clk 0:02:47.5]} 10... g4 {[%clk 0:02:55.9]} 11. Nd2 {[%clk
0:02:46.9]} 11... cxd4 {[%clk 0:02:51.6]} 12. exd4 {[%clk 0:02:47.8]} 12... Nc6
{[%clk 0:02:51.6]} 13. Nb3 {[%clk 0:02:41]} 13... a5 {[%clk 0:02:35]} 14. d5
{[%clk 0:02:40.8]} 14... Nb4 {[%clk 0:02:32.5]} 15. Qd2 {[%clk 0:02:14.7]} 15...
a4 {[%clk 0:02:26.8]} 16. Nb5 {[%clk 0:02:02.3]} 16... axb3 {[%clk 0:02:18.1]}
17. Qxb4 {[%clk 0:02:02]} 17... Rxa2 {[%clk 0:02:16.7]} 18. Rxa2 {[%clk
0:01:36.9]} 18... bxa2 {[%clk 0:02:17.6]} 19. O-O {[%clk 0:01:37.2]} 19... Bf5
{[%clk 0:01:51]} 20. Ra1 {[%clk 0:01:27.9]} 20... Qb6 {[%clk 0:01:28.9]} 21.
Rxa2 {[%clk 0:01:25.4]} 21... Nxg3 {[%clk 0:01:27.7]} 22. hxg3 {[%clk
0:01:26.3]} 22... h5 {[%clk 0:01:19.2]} 23. Qd2 {[%clk 0:01:17]} 23... Bg6
{[%clk 0:01:02.6]} 24. Ra3 {[%clk 0:01:14]} 24... Kh7 {[%clk 0:00:54.3]} 25. Bd3
{[%clk 0:01:13.6]} 25... Bh6 {[%clk 0:00:53.4]} 26. Qe2 {[%clk 0:01:11]} 26...
Bg5 {[%clk 0:00:50.4]} 27. Nc3 {[%clk 0:01:03.1]} 27... Bf6 {[%clk 0:00:28.2]}
28. Bc2 {[%clk 0:00:35.2]} 28... Qd4 {[%clk 0:00:27.4]} 29. Rb3 {[%clk
0:00:26.4]} 29... Ra8 {[%clk 0:00:25.7]} 30. Nb5 {[%clk 0:00:17]} 30... Ra1+
{[%clk 0:00:25.3]} 31. Kh2 {[%clk 0:00:17.1]} 31... Qe5 {[%clk 0:00:23.7]} 32.
Bxg6+ {[%clk 0:00:15.4]} 32... fxg6 {[%clk 0:00:23.6]} 33. Re3 {[%clk
0:00:14.2]} 33... Qg5 {[%clk 0:00:17.9]} 34. Re4 {[%clk 0:00:11.7]} 34... Qc1
{[%clk 0:00:16.7]} 35. Rxe7+ {[%clk 0:00:11.9]} 35... Bxe7 {[%clk 0:00:10.8]}
36. Qxe7+ {[%clk 0:00:12.8]} 36... Kh8 {[%clk 0:00:11]} 37. Qf8+ {[%clk
0:00:10.4]} 37... Kh7 {[%clk 0:00:11.4]} 38. Qf7+ {[%clk 0:00:07.5]} 38... Kh8
{[%clk 0:00:11.9]} 39. Qf6+ {[%clk 0:00:07.2]} 39... Kh7 {[%clk 0:00:12.3]} 40.
Qf7+ {[%clk 0:00:07.2]} 40... Kh8 {[%clk 0:00:12.7]} 41. Qf6+ {[%clk 0:00:07.8]}
41... Kh7 {[%clk 0:00:13.1]} 42. Qf7+ {[%clk 0:00:08.2]} 1/2-1/2

[Event "*** SCC Grand Prix: Titled Tuesday Blitz"]
[Site "Chess.com"]
[Date "2020.10.06"]
[Round "3"]
[White "anon569"]
[Black "KonstantinB_1983"]
[Result "0-1"]
[WhiteElo "2255"]
[BlackElo "2503"]
[TimeControl "180+1"]
[EndTime "10:27:37 PDT"]
[Termination "KonstantinB_1983 won on time"]

1. e4 {[%clk 0:03:00.9]} 1... c6 {[%clk 0:02:59]} 2. d4 {[%clk 0:02:58.7]} 2...
d5 {[%clk 0:02:59]} 3. Nd2 {[%clk 0:02:58.9]} 3... dxe4 {[%clk 0:02:58.2]} 4.
Nxe4 {[%clk 0:02:58.6]} 4... Nf6 {[%clk 0:02:59.1]} 5. Ng5 {[%clk 0:02:46.8]}
5... h6 {[%clk 0:02:54]} 6. N5f3 {[%clk 0:02:30.1]} 6... Bf5 {[%clk 0:02:49]} 7.
Ne2 {[%clk 0:02:27]} 7... Nbd7 {[%clk 0:02:46.2]} 8. Nf4 {[%clk 0:02:21.8]} 8...
e6 {[%clk 0:02:45]} 9. Bc4 {[%clk 0:02:14.3]} 9... Bd6 {[%clk 0:02:43]} 10. Bb3
{[%clk 0:02:11.2]} 10... Qc7 {[%clk 0:02:41.2]} 11. Nd3 {[%clk 0:02:07.2]} 11...
Bg4 {[%clk 0:02:38.3]} 12. Qe2 {[%clk 0:01:58.6]} 12... a5 {[%clk 0:02:30.5]}
13. c4 {[%clk 0:01:46.9]} 13... a4 {[%clk 0:02:28.3]} 14. Bc2 {[%clk 0:01:44.6]}
14... O-O {[%clk 0:02:23.9]} 15. Bd2 {[%clk 0:01:29.6]} 15... Rfe8 {[%clk
0:02:17.4]} 16. Bc3 {[%clk 0:01:20.3]} 16... a3 {[%clk 0:02:08.8]} 17. b3 {[%clk
0:01:17.5]} 17... b5 {[%clk 0:02:01.1]} 18. h3 {[%clk 0:01:04.1]} 18... Bf5
{[%clk 0:01:57.5]} 19. O-O {[%clk 0:01:01.6]} 19... bxc4 {[%clk 0:01:49]} 20.
bxc4 {[%clk 0:01:00.7]} 20... Ne4 {[%clk 0:01:39.7]} 21. Be1 {[%clk 0:00:55.8]}
21... Bh7 {[%clk 0:01:37.3]} 22. Nde5 {[%clk 0:00:53.2]} 22... Nef6 {[%clk
0:01:30.6]} 23. Bc3 {[%clk 0:00:49.7]} 23... Bxc2 {[%clk 0:01:23.9]} 24. Qxc2
{[%clk 0:00:49.2]} 24... c5 {[%clk 0:01:23.2]} 25. Nxd7 {[%clk 0:00:35.5]} 25...
Nxd7 {[%clk 0:01:20.9]} 26. d5 {[%clk 0:00:33.4]} 26... exd5 {[%clk 0:01:15.5]}
27. cxd5 {[%clk 0:00:31.1]} 27... Nb6 {[%clk 0:01:15.4]} 28. Rad1 {[%clk
0:00:29]} 28... Qd7 {[%clk 0:01:06]} 29. Ba1 {[%clk 0:00:25]} 29... Rad8 {[%clk
0:00:56.4]} 30. Qc3 {[%clk 0:00:23.2]} 30... Bf8 {[%clk 0:00:52.8]} 31. Qxa3
{[%clk 0:00:23]} 31... Nxd5 {[%clk 0:00:49.1]} 32. Qb3 {[%clk 0:00:17.7]} 32...
Qf5 {[%clk 0:00:42.3]} 33. Rd2 {[%clk 0:00:07.2]} 33... Nf4 {[%clk 0:00:38]} 34.
Rfd1 {[%clk 0:00:07.6]} 34... Rb8 {[%clk 0:00:27.8]} 35. Qc4 {[%clk 0:00:06.6]}
35... Nxh3+ {[%clk 0:00:23.3]} 36. Kh2 {[%clk 0:00:02.2]} 36... Nf4 {[%clk
0:00:19.4]} 37. Rd7 {[%clk 0:00:02.4]} 37... Ne6 {[%clk 0:00:16.8]} 0-1